bitfinex-derivatives/quotes_ETHF0:USTF0_20250309
["timestamp","ask_amount","ask_price","bid_price","bid_amount"]
[1741536221726,3.2078,2097.0,2096.4,9.27240997]
[1741536221933,3.2078,2097.0,2096.4,5.11043997]
[1741536222233,3.2078,2096.7,2096.4,5.11043997]
[1741536222427,3.2078,2097.0,2096.4,5.11043997]
[1741536222636,0.95414,2096.5,2096.4,5.11043997]
[1741536222928,0.95414,2096.5,2096.4,0.00713997]
[1741536223136,4.95414,2096.5,2096.4,0.00713997]
[1741536223535,0.95414,2096.5,2096.4,0.00713997]
[1741536223737,4.95414,2096.5,2096.4,0.00713997]
[1741536224234,0.95414,2096.5,2096.4,0.00713997]
[1741536225829,2.527,2096.6,2096.4,0.00713997]
[1741536226029,0.95414,2096.5,2096.4,0.00713997]
[1741536227338,4.16185,2096.7,2096.4,0.00713997]
[1741536227537,2.527,2096.7,2096.4,0.00713997]
[1741536227740,5.7348,2097.0,2096.4,0.00713997]
[1741536227931,0.95402,2096.8,2096.4,0.96130997]
[1741536228130,5.7348,2097.0,2096.4,0.00713997]
[1741536228437,3.2078,2096.7,2096.4,0.00713997]
[1741536228639,0.95414,2096.5,2096.4,0.00713997]
[1741536229033,0.95414,2096.5,2096.4,40.80713997]
[1741536229730,3.48114,2096.5,2096.4,0.00713997]
[1741536230334,7.48114,2096.5,2096.4,0.00713997]
[1741536230931,3.48114,2096.5,2096.4,0.00713997]
[1741536231131,8.59914,2096.5,2096.4,9.97e-06]
[1741536233547,10.604,2096.5,2095.2,3.2078]
[1741536233836,10.604,2096.5,2094.7,0.4776]
[1741536233837,3.2078,2095.4,2095.0,5.9795]
[1741536234135,0.95478,2095.1,2095.0,5.9795]
[1741536234544,1.02375,2095.2,2095.0,46.7795]
[1741536234735,0.069,2095.2,2095.0,46.7795]
[1741536234941,0.95478,2095.1,2095.0,46.7795]
[1741536239137,0.1914,2095.2,2095.0,46.7795]
[1741536239741,0.95478,2095.1,2095.0,46.7795]
[1741536239939,0.95487,2094.9,2094.8,0.00715785]
[1741536240639,5.7348,2095.1,2094.8,0.00715785]
[1741536240837,0.95487,2094.9,2094.8,0.00715785]
[1741536242840,0.95487,2094.9,2094.8,7.85e-06]
[1741536243348,4.95487,2094.9,2094.8,7.85e-06]
[1741536245147,0.95487,2094.9,2094.8,7.85e-06]
[1741536245544,4.95487,2094.9,2094.8,7.85e-06]
[1741536245745,0.95519,2094.2,2094.1,40.8]
[1741536245952,0.95519,2094.2,2093.9,5.1607]
[1741536245953,0.95528,2094.0,2093.9,5.1607]
[1741536246248,0.95528,2094.0,2093.6,12.3937]
[1741536246249,0.95535,2093.9,2093.6,12.3937]
[1741536246444,3.2078,2094.0,2093.7,45.9752]
[1741536247038,3.2078,2094.0,2093.7,50.13839]
[1741536247242,3.2078,2094.0,2093.7,49.183]
[1741536247446,3.2078,2094.0,2093.7,50.1384]
[1741536247647,2.985,2094.9,2093.7,50.1384]
[1741536247648,3.3992,2095.2,2093.8,2.528]
[1741536247953,2.38729,2094.8,2094.0,3.2078]
[1741536248144,3.2078,2094.9,2094.0,3.2078]
[1741536248145,0.95523,2094.1,2094.0,3.2078]
[1741536248341,3.2078,2094.6,2093.8,6.16319967]
[1741536248542,0.95532,2093.9,2093.8,6.16319967]
[1741536248743,0.9553,2094.0,2093.8,6.16319967]
[1741536248945,0.00715785,2094.1,2093.7,49.183]
[1741536249150,0.95537,2093.8,2093.7,49.183]
[1741536249344,0.00715785,2094.1,2093.7,49.183]
[1741536249543,0.95537,2093.8,2093.7,49.183]
[1741536249744,0.95537,2093.8,2093.7,5.1752]
[1741536249949,0.95541,2093.7,2093.6,12.40085785]
[1741536250150,0.95541,2093.7,2093.6,5.99985785]
[1741536250845,2.53515785,2094.1,2093.6,5.99985785]
[1741536251038,0.95541,2093.7,2093.6,12.08185785]
[1741536251444,0.95541,2093.7,2093.6,5.99985785]
[1741536252244,0.95555,2093.4,2093.3,40.8]
[1741536252848,0.9556,2093.3,2093.2,10.876]
[1741536253047,2.527,2093.3,2092.8,9.2889]
[1741536253343,2.527,2093.3,2092.8,46.8811]
[1741536253344,0.95578,2092.9,2092.8,46.8811]
[1741536253550,3.2078,2093.2,2092.8,46.88825785]
[1741536253746,0.95578,2092.9,2092.8,46.88825785]
[1741536254149,0.95578,2092.9,2092.8,40.80715785]
[1741536254453,3.48378,2092.9,2092.8,0.00715785]
[1741536254654,6.69158,2092.9,2092.8,0.00715785]
[1741536255458,6.69158,2092.9,2092.8,7.85e-06]
[1741536255752,3.646,2093.2,2092.8,7.85e-06]
[1741536255949,0.95571,2093.1,2092.8,7.85e-06]
[1741536256251,2.528,2093.8,2093.0,3.2078]
[1741536256443,2.528,2093.8,2093.1,40.8]
[1741536256444,0.95564,2093.2,2093.1,40.8]
[1741536257757,0.95578,2092.9,2092.8,7.85e-06]
[1741536260456,4.16358,2092.9,2092.8,7.85e-06]
[1741536260963,12.26658,2092.9,2092.8,7.85e-06]
[1741536261472,0.95614,2092.1,2092.0,10.9886]
[1741536261664,2.528,2092.3,2092.0,10.9886]
[1741536261870,0.9561,2092.2,2092.0,10.9886]
[1741536262169,0.95614,2092.1,2092.0,10.9886]
[1741536262873,0.95614,2092.1,2091.8,0.00715785]
[1741536263168,0.95624,2091.9,2091.8,0.00715785]
[1741536263563,3.48424,2091.9,2091.8,0.00715785]
[1741536263762,7.48424,2091.9,2091.7,3.2078]
[1741536263967,0.9566,2091.1,2091.0,40.8]
[1741536264272,2.528,2091.3,2091.0,40.8]
[1741536264463,5.7358,2091.4,2091.0,40.8]
[1741536264864,0.9566,2091.1,2091.0,40.8]
[1741536265064,0.9566,2091.1,2091.0,40.80476594]
[1741536265570,0.9566,2091.1,2091.0,0.00476594]
[1741536266075,5.7358,2091.4,2091.0,0.00476594]
[1741536266369,21.445,2092.2,2091.0,0.00476594]
[1741536266370,5.7368,2092.1,2091.3,3.2078]
[1741536266569,5.7368,2092.1,2091.6,3.2078]
[1741536266770,13.9595,2092.9,2091.9,3.2078]
[1741536266771,5.7368,2092.4,2091.9,3.2078]
[1741536266970,15.0775,2092.9,2092.3,0.95604]
[1741536266971,4.16359,2092.9,2092.3,0.95604]
[1741536267175,3.2078,2092.9,2092.2,3.2078]
[1741536267374,3.2078,2092.9,2092.0,40.8]
[1741536267375,3.2078,2092.6,2092.0,40.8]
[1741536267567,0.95602,2092.4,2092.1,6.5088]
[1741536267762,3.2078,2092.9,2092.1,9.7166]
[1741536268272,0.00715785,2092.7,2092.3,0.00715785]
[1741536268670,0.95601,2092.4,2092.3,0.00715785]
[1741536268872,4.16381,2092.4,2092.3,0.00715785]
[1741536269070,4.16381,2092.4,2092.3,7.85e-06]
[1741536271771,0.00715785,2092.7,2092.3,7.85e-06]
[1741536271968,0.00715785,2092.7,2092.6,3.2078]
[1741536272370,0.00715785,2092.7,2092.4,6.0658]
[1741536272975,0.00715785,2092.7,2092.6,3.2078]
[1741536274080,24.6598,2093.8,2092.6,7.2078]
[1741536274281,4.9357,2094.1,2093.3,3.2078]
[1741536274474,2.529,2094.4,2093.6,3.2078]
[1741536274674,2.38786,2094.3,2093.7,40.8]
[1741536274873,0.95537,2093.8,2093.7,40.8]
[1741536275475,0.00715785,2094.2,2093.7,40.8]
[1741536275476,0.95525,2094.1,2093.7,40.8]
[1741536275785,0.96236785,2094.2,2093.9,3.2078]
[1741536276079,1.04448,2094.0,2093.9,3.2078]
[1741536276281,0.0892,2094.0,2093.9,3.2078]
[1741536276577,0.96235785,2094.2,2093.9,7.2078]
[1741536276782,0.00715785,2094.2,2093.9,3.2078]
[1741536276979,5.7358,2094.9,2093.9,3.2078]
[1741536277182,0.95528,2094.0,2093.9,3.2078]
[1741536277581,0.95528,2094.0,2093.7,47.2916]
[1741536277777,3.2078,2094.6,2093.7,47.2916]
[1741536277778,2.528,2094.5,2093.7,47.2916]
[1741536278085,0.95537,2093.8,2093.7,6.4916]
[1741536278378,3.21495785,2094.3,2093.5,3.21495785]
[1741536278579,0.95546,2093.6,2093.5,0.00715785]
[1741536278785,3.2078,2093.9,2093.5,0.00715785]
[1741536279083,0.95546,2093.6,2093.5,0.00715785]
[1741536279679,4.16326,2093.6,2093.5,0.00715785]
[1741536279879,0.95546,2093.6,2093.5,0.00715785]
[1741536281777,0.95546,2093.6,2093.5,7.85e-06]
[1741536282081,4.95546,2093.6,2093.5,7.85e-06]
[1741536282789,4.77757,2093.5,2092.2,6.2553]
[1741536283084,4.77757,2093.5,2091.7,0.4784]
[1741536283085,2.39003,2092.4,2091.7,2.949]
[1741536283286,3.2078,2092.1,2091.8,3.2078]
[1741536283483,0.95637,2091.6,2091.5,28.09104574]
[1741536283687,4.16417,2091.6,2091.5,18.62794574]
[1741536283887,8.16417,2091.6,2091.5,14.68108788]
[1741536284180,8.16417,2091.6,2091.5,9.97597514]
[1741536284384,8.16417,2091.6,2091.3,0.00715785]
[1741536284385,0.95646,2091.4,2091.3,0.00715785]
[1741536284679,0.95683,2090.6,2090.5,3.2078]
[1741536284880,3.48383,2090.6,2090.5,3.2078]
[1741536285081,6.527,2090.6,2090.1,3.2078]
[1741536285279,3.2078,2090.5,2089.8,3.2078]
[1741536285475,3.2078,2090.5,2089.7,2.949]
[1741536285476,3.2078,2090.1,2089.7,2.949]
[1741536285676,2.527,2090.2,2089.8,40.8]
[1741536285882,0.00717515,2090.1,2090.0,4.16491]
[1741536286090,0.95676,2090.8,2090.0,3.2078]
[1741536286285,2.528,2090.9,2089.9,3.2078]
[1741536286485,2.528,2090.9,2090.2,3.2078]
[1741536286784,3.2078,2091.3,2090.8,3.2078]
[1741536286985,3.2078,2091.6,2090.8,3.2078]
[1741536287179,2.528,2091.8,2091.2,3.2078]
[1741536287385,4.3258,2092.1,2091.2,3.2078]
[1741536287386,0.00717515,2091.4,2091.2,3.2078]
[1741536287684,3.2078,2092.5,2091.2,10.1568]
[1741536287984,3.2078,2092.8,2092.1,3.2078]
[1741536288186,0.95607,2092.3,2091.9,5.7358]
[1741536288391,5.7358,2093.0,2092.2,3.2078]
[1741536288591,5.7358,2093.0,2091.8,10.8523]
[1741536288785,0.95596,2092.5,2092.4,0.00717515]
[1741536288992,4.16376,2092.5,2092.4,0.00717515]
[1741536289484,0.95613,2092.2,2091.8,10.8523]
[1741536289791,0.95612,2092.2,2091.8,8.3243]
[1741536289991,0.95601,2092.4,2091.8,8.3243]
[1741536290386,18.84597441,2092.6,2091.8,8.3243]
[1741536290387,0.95617,2092.1,2091.8,8.3243]
[1741536290584,0.95614,2092.2,2091.8,8.3243]
[1741536290789,3.2078,2092.3,2091.9,0.00717515]
[1741536290987,0.95619,2092.0,2091.9,0.00717515]
[1741536291292,2.528,2092.2,2091.9,0.00717515]
[1741536291685,0.95616,2092.1,2091.9,0.00717515]
[1741536291885,0.95619,2092.0,2091.9,0.00717515]
[1741536292092,2.528,2092.2,2091.9,0.00717515]
[1741536292389,0.95619,2092.0,2091.9,0.00717515]
[1741536293285,0.95617,2092.1,2091.9,0.00717515]
[1741536293590,2.528,2092.2,2091.9,0.00717515]
[1741536293890,4.16388,2092.3,2091.9,40.80717515]
[1741536294195,0.95619,2092.0,2091.9,40.80717515]
[1741536294389,0.95619,2092.0,2091.9,0.00717515]
[1741536294989,2.528,2092.1,2091.9,0.00717515]
[1741536295493,0.95612,2092.2,2091.9,0.00717515]
[1741536295687,3.646,2092.5,2092.1,3.2078]
[1741536295888,2.528,2092.5,2092.1,3.2078]
[1741536296386,0.95603,2092.4,2092.1,3.2078]
[1741536296592,0.95608,2092.3,2092.1,3.2078]
[1741536296785,0.95603,2092.4,2092.1,3.2078]
[1741536296985,0.95607,2092.3,2092.1,3.2078]
[1741536297181,9.69993,2093.2,2092.1,3.2078]
[1741536297392,2.528,2093.1,2092.4,3.2078]
[1741536297688,0.95608,2092.3,2092.1,3.2078]
[1741536298089,2.39676515,2092.8,2092.1,3.2078]
[1741536298293,0.95608,2092.3,2092.1,3.2078]
[1741536298492,2.38968,2092.7,2092.1,3.2078]
[1741536298791,0.9561,2092.2,2092.1,3.2078]
[1741536299187,0.95619,2092.0,2091.9,0.00717515]
[1741536299985,0.95612,2092.2,2091.9,0.00717515]
[1741536300185,2.528,2092.5,2092.1,3.2078]
[1741536300390,0.9561,2092.2,2092.1,3.2078]
[1741536300689,0.95619,2092.0,2091.9,0.00717515]
[1741536301594,3.2078,2092.3,2091.9,0.00717515]
[1741536301801,0.956,2092.5,2092.1,0.95614]
[1741536301993,3.21497515,2092.8,2092.3,3.2078]
[1741536302299,0.95612,2092.2,2092.0,12.2585]
[1741536302594,0.00717515,2092.8,2092.0,12.2585]
[1741536302793,0.00717515,2092.8,2092.4,3.2078]
[1741536302991,0.95595,2092.6,2092.4,3.2078]
[1741536303192,0.95596,2092.5,2092.4,3.2078]
[1741536303603,0.00717515,2092.8,2092.4,3.2078]
[1741536303797,0.96301515,2092.8,2092.5,0.95595]
[1741536303991,0.00717515,2092.8,2092.7,4.16367]
[1741536304292,0.00717515,2092.8,2092.7,44.0078]
[1741536304599,5.7348,2093.4,2092.7,48.0078]
[1741536304798,0.95555,2093.4,2093.1,0.95567]
[1741536305001,0.95539,2093.8,2093.3,3.2078]
[1741536305301,0.9555,2093.5,2093.4,2.949]
[1741536305497,3.2078,2094.1,2093.4,2.949]
[1741536305692,0.95546,2093.6,2093.5,3.2078]
[1741536305894,0.95546,2093.6,2093.5,0.00717515]
[1741536306799,3.2078,2093.8,2093.5,0.00717515]
[1741536306996,0.95546,2093.6,2093.5,0.00717515]
[1741536307702,5.74197515,2094.0,2093.5,0.00717515]
[1741536308002,0.95546,2093.6,2093.5,0.00717515]
[1741536308201,0.9554,2093.8,2093.5,0.00717515]
[1741536308498,0.00717515,2094.0,2093.6,0.95543]
[1741536308703,0.00717515,2094.0,2093.8,3.2078]
[1741536308999,22.05277441,2095.1,2093.9,7.7001]
[1741536309198,0.95516,2094.3,2094.2,3.2078]
[1741536309393,5.59509,2094.8,2093.9,16.9943]
[1741536309598,0.95505,2094.5,2094.2,4.16297]
[1741536309801,0.95509,2094.5,2094.2,3.2078]
[1741536310109,0.00717515,2094.6,2094.2,3.2078]
[1741536310302,0.95514,2094.3,2094.2,3.2078]
[1741536311104,0.96220515,2094.6,2094.2,7.2078]
[1741536311407,0.96220515,2094.6,2094.5,3.2078]
[1741536311708,0.00717515,2094.6,2094.5,3.2078]
[1741536311900,0.96217515,2094.6,2094.5,3.2078]
[1741536312206,0.95512,2094.4,2094.2,5.7338]
[1741536312408,0.00717515,2094.6,2094.2,6.68895]
[1741536312601,0.00717515,2094.6,2094.2,5.7338]
[1741536313001,0.95514,2094.3,2094.2,3.2078]
[1741536313308,0.95514,2094.3,2094.1,6.1834]
[1741536313309,0.95528,2094.0,2093.9,16.5713]
[1741536313503,3.2078,2094.5,2093.9,16.5713]
[1741536313811,0.95546,2093.6,2093.4,3.2078]
[1741536314104,2.526,2094.0,2093.4,3.2078]
[1741536314301,2.526,2094.0,2093.5,5.05347515]
[1741536314708,0.95538,2093.8,2093.5,5.05347515]
[1741536314907,2.526,2094.3,2093.5,8.00247515]
[1741536315099,3.2078,2094.4,2093.7,3.2078]
[1741536315298,0.95508,2094.5,2094.1,0.95521]
[1741536315498,0.95508,2094.5,2094.0,3.2078]
[1741536315499,0.00717515,2094.6,2094.0,3.2078]
[1741536315703,0.95516,2094.3,2094.1,5.1567]
[1741536315906,0.00717515,2094.6,2094.1,5.1567]
[1741536316099,0.95519,2094.2,2094.1,5.1567]
[1741536316507,0.95537,2093.8,2093.7,6.1568]
[1741536316805,3.2078,2094.3,2093.7,3.2078]
[1741536317004,0.95546,2093.6,2093.4,3.2078]
[1741536317196,3.2078,2093.6,2093.1,5.1567]
[1741536317400,4.91344,2093.8,2093.1,5.1567]
[1741536317600,0.95563,2093.3,2093.1,5.1567]
[1741536318008,2.525,2093.8,2093.1,5.1567]
[1741536318201,2.38877,2093.5,2092.7,3.2078]
[1741536318406,0.9556,2093.3,2093.2,0.00717515]
[1741536318602,0.9556,2093.3,2093.2,5.15e-06]
[1741536322209,0.00717515,2093.7,2093.2,5.15e-06]
[1741536322400,0.9556,2093.3,2093.2,5.15e-06]
[1741536323507,2.53317515,2093.7,2093.2,5.15e-06]
[1741536323905,0.95554,2093.5,2093.2,5.15e-06]
[1741536324104,0.95554,2093.5,2093.3,40.8]
[1741536324304,0.00717515,2093.7,2093.4,3.2078]
[1741536324609,0.95549,2093.6,2093.4,3.2078]
[1741536324811,0.9555,2093.5,2093.4,3.2078]
[1741536325614,0.9556,2093.3,2093.2,5.15e-06]
[1741536326005,4.9556,2093.3,2093.2,5.15e-06]
[1741536327203,0.9556,2093.3,2093.2,5.15e-06]
[1741536327808,2.526,2093.3,2093.2,5.15e-06]
[1741536328009,0.96261515,2093.7,2093.3,0.95556]
[1741536328210,0.00717515,2093.7,2093.3,3.2078]
[1741536328415,0.00717515,2093.7,2093.4,0.95553]
[1741536328708,0.00717515,2093.7,2093.3,3.2078]
[1741536328709,0.00717515,2093.7,2093.3,6.1568]
[1741536328913,8.0658,2094.2,2093.6,4.16326]
[1741536328914,0.9553,2094.0,2093.6,4.16326]
[1741536329110,0.9553,2094.0,2093.6,6.1568]
[1741536329309,3.2078,2094.2,2093.6,6.1568]
[1741536329506,3.2078,2094.2,2093.7,5.2776]
[1741536329708,0.95537,2093.8,2093.7,5.2776]
[1741536329904,0.95537,2093.8,2093.6,6.1568]
[1741536330105,0.95541,2093.7,2093.6,2.949]
[1741536330409,3.2078,2093.9,2093.6,2.949]
[1741536330610,0.00717515,2094.0,2093.6,2.949]
[1741536331008,0.95541,2093.7,2093.6,2.949]
[1741536331204,0.9556,2093.3,2093.2,5.15e-06]
[1741536332714,4.1634,2093.3,2093.2,5.15e-06]
[1741536333109,10.6894,2093.3,2093.2,5.15e-06]
[1741536334517,6.6894,2093.3,2093.2,5.15e-06]
[1741536334916,10.6894,2093.3,2093.2,5.15e-06]
[1741536337119,2.38938,2093.0,2092.0,3.2078]
[1741536337317,3.2078,2092.6,2091.8,9.0587]
[1741536337516,0.95612,2092.2,2091.8,9.0587]
[1741536337820,0.95614,2092.1,2092.0,40.8]
[1741536338014,0.95609,2092.3,2092.0,44.0078]
[1741536338320,0.00717515,2092.4,2092.0,44.0078]
[1741536338516,0.00717515,2092.4,2092.3,4.16385]
[1741536338921,3.2078,2093.3,2092.3,10.1568]
[1741536339122,3.2078,2093.3,2092.6,3.2078]
[1741536339325,0.95571,2093.1,2092.7,40.8]
[1741536339522,0.95571,2093.1,2092.7,45.8796]
[1741536339816,3.2078,2093.3,2092.9,3.2078]
[1741536340022,0.00717515,2093.1,2092.9,3.2078]
[1741536340415,0.96287515,2093.1,2092.9,3.2078]
[1741536340823,0.00717515,2093.1,2092.9,3.2078]
[1741536341027,0.96286515,2093.1,2092.9,3.2078]
[1741536341520,0.00717515,2093.1,2093.0,0.95573]
[1741536341717,2.38854,2093.7,2092.9,3.2078]
[1741536341912,0.59160072,2093.6,2093.2,3.2078]
[1741536342123,0.95549,2093.6,2093.3,40.8]
[1741536342416,5.7338,2093.9,2093.3,45.6665]
[1741536342620,0.95552,2093.5,2093.3,45.6665]
[1741536342822,0.95552,2093.5,2093.4,0.00717515]
[1741536343517,1.54790138,2093.5,2093.4,5.15e-06]
[1741536343718,11.22138138,2093.5,2092.4,10.9482]
[1741536343924,0.95596,2092.5,2092.4,10.9482]
[1741536344218,0.95619,2092.1,2091.9,44.0078]
[1741536344419,0.95619,2092.0,2091.9,3.2078]
[1741536344618,2.526,2092.4,2091.9,3.2078]
[1741536344816,2.526,2092.4,2091.6,21.5218926]
[1741536344817,0.95628,2091.8,2091.7,40.8]
[1741536345017,0.95628,2091.8,2091.7,40.80717515]
[1741536345321,0.95633,2091.7,2091.6,18.5728926]
[1741536345516,4.75547475,2091.7,2091.6,18.5728926]
[1741536345920,8.75547475,2091.7,2091.6,5.8291326]
[1741536346219,0.9566,2091.1,2091.0,40.8]
[1741536346829,0.95669,2090.9,2090.8,0.00717515]
[1741536347228,3.48269,2090.9,2090.8,0.00717515]
[1741536347619,2.526,2090.9,2090.8,0.00717515]
[1741536347822,3.2078,2091.6,2090.8,0.00717515]
[1741536348023,3.2078,2091.7,2091.0,3.2078]
[1741536348320,0.95655,2091.3,2091.0,3.2078]
[1741536348522,0.95648,2091.4,2090.8,7.03019515]
[1741536348729,0.95653,2091.3,2090.8,6.07347515]
[1741536348916,0.95656,2091.2,2090.8,6.07347515]
[1741536349122,0.00717515,2091.3,2090.8,6.07347515]
[1741536349516,14.57003153,2091.9,2091.1,3.2078]
[1741536349720,14.57003153,2091.9,2091.4,3.2078]
[1741536350220,14.57003153,2091.9,2091.4,4.16424]
[1741536350421,14.57003153,2091.9,2091.4,3.2078]
[1741536350618,14.57720668,2091.9,2091.6,0.95636]
[1741536350826,4.68400668,2091.9,2091.8,3.2078]
[1741536351128,0.95637,2091.6,2091.5,3.2078]
[1741536351325,0.95628,2091.8,2091.5,3.2078]
[1741536351527,0.95637,2091.6,2091.5,3.2078]
[1741536351723,0.95635,2091.7,2091.5,3.2078]
[1741536351928,0.9563,2091.8,2091.5,3.2078]
[1741536352129,0.95637,2091.6,2091.5,3.2078]
[1741536352329,0.00717515,2091.9,2091.3,2.949]
[1741536352522,0.95637,2091.7,2091.3,2.949]
[1741536352724,0.95651,2091.3,2091.2,5.0585]
[1741536353128,1.00855883,2091.3,2091.2,5.0585]
[1741536353729,0.05204883,2091.3,2091.2,5.0585]
[1741536353931,0.05204883,2091.3,2091.2,45.8585]
[1741536354831,0.05204883,2091.3,2091.2,49.8585]
[1741536355031,0.05204883,2091.3,2091.2,45.8585]
[1741536355534,1.00855883,2091.3,2091.2,45.8585]
[1741536356033,0.95661,2091.1,2090.9,6.167]
[1741536356225,0.05204883,2091.0,2090.9,6.167]
[1741536356426,0.05204883,2091.0,2090.9,46.967]
[1741536356628,0.05204883,2091.0,2090.9,51.92369]
[1741536356825,0.05204883,2091.0,2090.9,50.967]
[1741536357731,2.527,2091.8,2090.9,47.92369]
[1741536357935,2.527,2091.8,2090.9,50.1748]
[1741536358129,2.527,2091.8,2091.2,3.2078]
[1741536358540,0.00717515,2091.9,2091.5,3.2078]
[1741536359039,0.00717515,2091.9,2091.5,4.16421]
[1741536359230,0.95615,2092.1,2091.8,3.2078]
[1741536359431,0.95614,2092.2,2091.9,11.2893]
[1741536359638,2.527,2092.4,2091.9,11.2893]
[1741536359929,0.95607,2092.3,2092.1,3.2078]
[1741536360132,0.95619,2092.0,2091.9,11.2893]
[1741536360339,0.00712712,2092.4,2092.0,0.00717515]
[1741536360534,0.00712712,2092.4,2092.2,0.95608]
[1741536360733,0.95588,2092.7,2092.3,0.95603]
[1741536361034,0.95588,2092.7,2092.2,2.949]
[1741536361035,0.95578,2092.9,2092.5,0.95594]
[1741536361236,0.95567,2093.2,2092.8,0.9558]
[1741536361438,2.527,2093.9,2093.1,3.2078]
[1741536361832,0.95564,2093.2,2093.1,3.21497515]
[1741536362039,3.2078,2093.7,2093.1,44.01497515]
[1741536362240,0.95564,2093.2,2093.1,44.01497515]
[1741536362446,3.2078,2093.7,2093.1,44.01497515]
[1741536362744,0.95564,2093.2,2093.1,44.01497515]
[1741536363041,3.2078,2093.8,2093.1,44.01497515]
[1741536363638,0.95557,2093.4,2093.1,44.01497515]
[1741536363839,0.95552,2093.5,2093.1,44.01497515]
[1741536364039,0.9556,2093.3,2093.1,44.01497515]
[1741536364242,3.2078,2094.1,2093.1,49.49097515]
[1741536364546,3.2078,2094.1,2093.3,3.2078]
[1741536365047,2.3882,2094.0,2093.3,3.2078]
[1741536365343,3.2078,2094.1,2093.3,3.2078]
[1741536365344,0.95537,2093.8,2093.3,3.2078]
[1741536365541,3.2078,2094.1,2093.3,3.2078]
[1741536365738,3.2078,2094.1,2093.6,3.2078]
[1741536366141,3.2078,2094.1,2093.4,4.8018]
[1741536366344,0.95534,2093.9,2093.4,4.8018]
[1741536366534,3.2078,2094.1,2093.4,4.8018]
[1741536366944,0.95544,2093.7,2093.4,4.8018]
[1741536367146,3.2078,2094.1,2093.4,4.8018]
[1741536367349,0.95545,2093.7,2093.4,4.8018]
[1741536367645,0.9555,2093.6,2093.4,4.8018]
[1741536367944,3.2078,2094.1,2093.4,4.8018]
[1741536368744,2.3882,2094.0,2093.3,3.2078]
[1741536368944,0.95553,2093.5,2093.3,3.2078]
[1741536369150,3.2078,2093.8,2093.1,0.00717515]
[1741536369342,0.95564,2093.2,2093.1,0.00717515]
[1741536369647,0.95559,2093.4,2093.1,0.00717515]
[1741536369841,3.2078,2093.9,2093.1,0.00717515]
[1741536370045,0.95563,2093.3,2093.1,0.00717515]
[1741536370253,3.2078,2093.9,2093.1,0.00717515]
[1741536370437,0.95553,2093.5,2093.1,0.00717515]
[1741536370944,0.95548,2093.6,2093.1,0.00717515]
[1741536371137,0.95548,2093.6,2093.3,3.2078]
[1741536371345,3.2078,2093.9,2093.4,0.95553]
[1741536371548,0.95541,2093.7,2093.4,2.949]
[1741536371741,3.2078,2094.0,2093.4,2.949]
[1741536371940,0.9555,2093.6,2093.3,3.2078]
[1741536372145,0.95555,2093.4,2093.2,8.6828]
[1741536372343,0.95564,2093.2,2093.1,0.00717515]
[1741536373351,0.95564,2093.2,2093.1,5.15e-06]
[1741536373550,4.95564,2093.2,2093.1,5.15e-06]
[1741536373748,6.07364,2093.2,2093.1,5.15e-06]
[1741536374048,6.07364,2093.2,2091.9,2.949]
[1741536374049,8.68457957,2093.2,2091.4,3.2078]
[1741536374251,3.2078,2092.1,2091.4,3.2078]
[1741536374552,0.95636,2091.7,2091.5,40.8]
[1741536374747,0.95637,2091.6,2091.5,40.8]
[1741536375150,0.95656,2091.2,2091.1,18.56535637]
[1741536375946,0.95665,2091.0,2090.9,0.00717515]
[1741536376346,4.16445,2091.0,2090.9,0.00717515]
[1741536376653,0.95692,2090.4,2090.3,40.8]
[1741536377054,2.532,2090.7,2090.3,40.8]
[1741536377550,2.532,2090.7,2090.4,3.2078]
[1741536377851,3.2078,2090.9,2090.4,3.2078]
[1741536378049,0.00717515,2090.8,2090.7,3.2078]
[1741536378656,0.96391515,2090.8,2090.7,3.2078]
[1741536379057,0.00717515,2090.8,2090.7,40.8]
[1741536379255,0.00717515,2090.8,2090.7,45.75678]
[1741536379459,0.9565,2091.4,2090.7,48.29078]
[1741536379654,3.2078,2091.4,2090.7,40.8]
[1741536379853,0.95674,2090.8,2090.7,40.8]
[1741536380152,3.2078,2091.3,2090.7,40.8]
[1741536380457,2.539,2091.8,2091.0,3.2078]
[1741536380644,2.539,2091.8,2091.1,3.2078]
[1741536380851,0.95652,2091.3,2091.1,3.2078]
[1741536381052,2.539,2091.8,2090.8,7.7481]
[1741536381250,2.539,2091.8,2091.0,3.2078]
[1741536381550,3.2078,2091.9,2091.4,3.2078]
[1741536381756,0.95635,2091.7,2091.4,3.2078]
[1741536381961,3.2078,2091.9,2091.1,3.2078]
[1741536382161,0.9565,2091.4,2091.3,0.00717515]
[1741536383052,4.9565,2091.4,2091.3,5.15e-06]
[1741536383247,6.0745,2091.4,2091.3,5.15e-06]
[1741536383445,12.71248526,2091.4,2091.3,5.15e-06]
[1741536383657,13.09194706,2091.4,2091.3,5.15e-06]
[1741536383852,8.5115618,2091.4,2091.3,5.15e-06]
[1741536384158,2.0745,2091.4,2091.3,5.15e-06]
[1741536384556,6.0745,2091.4,2091.3,5.15e-06]
[1741536385054,2.0745,2091.4,2091.3,5.15e-06]
[1741536385362,6.6548361,2091.4,2091.3,5.15e-06]
[1741536385855,2.6548361,2091.4,2091.3,5.15e-06]
[1741536386055,7.0342409,2091.4,2091.3,5.15e-06]
[1741536386249,1.3359048,2091.4,2091.3,5.15e-06]
[1741536386449,4.9565,2091.4,2091.3,5.15e-06]
[1741536386656,0.9565,2091.4,2091.3,5.15e-06]
[1741536386954,3.5245,2091.4,2091.3,5.15e-06]
[1741536387568,0.9565,2091.4,2091.3,5.15e-06]
[1741536387762,3.5215,2091.4,2091.3,5.15e-06]
[1741536389059,7.5215,2091.4,2091.3,5.15e-06]
[1741536390759,8.1011183,2091.4,2091.3,5.15e-06]
[1741536390964,9.2191183,2091.4,2091.3,5.15e-06]
[1741536391263,0.95701,2090.2,2090.1,4.8233]